lending/lending_fUSD_20250131
["ID","MTS","AMOUNT","RATE_DAILY","PERIOD"]
[351124795,1738344657180,-1044.66,0.00017123,2]
[351124796,1738344657189,-535.84,0.00017123,2]
[351124797,1738344657199,-500.0,0.00017123,2]
[351124798,1738344657212,-500.0,0.00017123,2]
[351124799,1738344657223,-500.0,0.00017123,2]
[351124800,1738344657233,-500.0,0.00017123,2]
[351124801,1738344657242,-500.0,0.00017123,2]
[351124802,1738344657253,-784.94,0.00017123,2]
[351124803,1738344657262,-500.0,0.00017123,2]
[351124804,1738344657271,-500.0,0.00017123,2]
[351124805,1738344657281,-564.28,0.00017123,2]
[351124806,1738344657293,-500.0,0.00017123,2]
[351124807,1738344657302,-500.0,0.00017123,2]
[351124808,1738344657311,-860.3,0.00017123,2]
[351124809,1738344657320,-505.56,0.00017123,2]
[351124810,1738344657330,-697.26,0.00017123,2]
[351124811,1738344657339,-693.81,0.00017123,2]
[351124812,1738344657348,-500.0,0.00017123,2]
[351124813,1738344657357,-500.0,0.00017123,2]
[351124814,1738344657368,-500.0,0.00017123,2]
[351124815,1738344657377,-500.0,0.00017123,2]
[351124816,1738344657387,-561.04,0.00017123,2]
[351124817,1738344657396,-500.0,0.00017123,2]
[351124818,1738344657405,-500.0,0.00017123,2]
[351124819,1738344657414,-500.0,0.00017123,2]
[351124820,1738344657424,-500.0,0.00017123,2]
[351124821,1738344657433,-500.0,0.00017123,2]
[351124822,1738344657442,-371.982495,0.00017123,2]
[351124823,1738344657451,-500.0,0.00017123,2]
[351124824,1738344657460,-500.0,0.00017123,2]
[351124825,1738344657469,-500.0,0.00017123,2]
[351124826,1738344657479,-500.0,0.00017123,2]
[351124827,1738344657488,-500.0,0.00017123,2]
[351124828,1738344657497,-500.0,0.00017123,2]
[351124829,1738344657510,-500.0,0.00017123,2]
[351124830,1738344657519,-500.0,0.00017123,2]
[351124831,1738344657528,-500.0,0.00017123,2]
[351124832,1738344657537,-500.0,0.00017123,2]
[351124833,1738344657546,-592.06,0.00017123,2]
[351124834,1738344657555,-332.619358,0.00017123,2]
[351124835,1738344657564,-500.0,0.00017123,2]
[351124836,1738344657574,-500.0,0.00017123,2]
[351124837,1738344657585,-500.0,0.00017123,2]
[351124838,1738344657594,-539.55,0.00017123,2]
[351124839,1738344657603,-500.0,0.00017123,2]
[351124840,1738344657612,-759.94,0.00017123,2]
[351124841,1738344657621,-676.46,0.00017123,2]
[351124842,1738344657630,-500.0,0.00017123,2]
[351124843,1738344657639,-500.0,0.00017123,2]
[351124844,1738344657649,-500.0,0.00017123,2]
[351124845,1738344657658,-500.0,0.00017123,2]
[351124846,1738344657668,-533.58,0.00017123,2]
[351124847,1738344657678,-500.0,0.00017123,2]
[351124848,1738344657687,-500.0,0.00017123,2]
[351124849,1738344657697,-500.0,0.00017123,2]
[351124850,1738344657706,-500.0,0.00017123,2]
[351124851,1738344657716,-655.18,0.00017123,2]
[351124852,1738344657725,-500.0,0.00017123,2]
[351124853,1738344657737,-500.0,0.00017123,2]
[351124854,1738344657746,-500.0,0.00017123,2]
[351124855,1738344657755,-585.36,0.00017123,2]
[351124856,1738344657765,-500.0,0.00017123,2]
[351124857,1738344657774,-500.0,0.00017123,2]
[351124858,1738344657783,-649.13,0.00017123,2]
[351124859,1738344657792,-500.0,0.00017123,2]
[351124860,1738344657801,-500.0,0.00017123,2]
[351124861,1738344657810,-500.0,0.00017123,2]
[351124862,1738344657819,-500.0,0.00017123,2]
[351124863,1738344657829,-696.31,0.00017123,2]
[351124864,1738344657838,-500.0,0.00017123,2]
[351124865,1738344657848,-156.312002,0.00017123,2]
[351124866,1738344657857,-500.0,0.00017123,2]
[351124867,1738344657867,-500.0,0.00017123,2]
[351124868,1738344657877,-644.3,0.00017123,2]
[351124869,1738344657886,-500.0,0.00017123,2]
[351124870,1738344657895,-500.0,0.00017123,2]
[351124871,1738344657905,-688.25,0.00017123,2]
[351124872,1738344657915,-513.03,0.00017123,2]
[351124873,1738344657924,-500.0,0.00017123,2]
[351124874,1738344657933,-788.15,0.00017123,2]
[351124875,1738344657943,-500.0,0.00017123,2]
[351124876,1738344657952,-500.0,0.00017123,2]
[351124877,1738344657961,-500.0,0.00017123,2]
[351124878,1738344657972,-574.15,0.00017123,2]
[351124879,1738344657983,-1535.23,0.00017123,2]
[351124880,1738344657992,-500.0,0.00017123,2]
[351124881,1738344658001,-500.0,0.00017123,2]
[351124882,1738344658010,-500.0,0.00017123,2]
[351124883,1738344658019,-1637.44,0.00017123,2]
[351124884,1738344658028,-1262.62,0.00017123,2]
[351124885,1738344658038,-500.0,0.00017123,2]
[351124886,1738344658047,-793.65,0.00017123,2]
[351124887,1738344658057,-4428.25,0.00017123,2]
[351124888,1738344658066,-577.47,0.00017123,2]
[351124889,1738344658075,-500.0,0.00017123,2]
[351124890,1738344658084,-910.87,0.00017123,2]
[351124891,1738344658093,-500.0,0.00017123,2]
[351124892,1738344658102,-655.41,0.00017123,2]
[351124893,1738344658265,-570.64,0.00017123,2]
[351124894,1738344658283,-500.0,0.00017123,2]
[351124895,1738344658297,-500.0,0.00017123,2]
[351124896,1738344658307,-500.0,0.00017123,2]
[351124897,1738344658317,-580.49,0.00017123,2]
[351124898,1738344658326,-523.67,0.00017123,2]
[351124899,1738344658336,-1017.32,0.00017123,2]
[351124900,1738344658345,-2356.36,0.00017123,2]
[351124901,1738344658354,-570.77,0.00017123,2]
[351124902,1738344658363,-1390.63,0.00017123,2]
[351124903,1738344658373,-882.45,0.00017123,2]
[351124904,1738344658382,-500.0,0.00017123,2]
[351124905,1738344658391,-590.98,0.00017123,2]
[351124906,1738344658401,-575.35996313,0.00017123,2]
[351124907,1738344658410,-500.0,0.00017123,2]
[351124908,1738344658419,-500.0,0.00017123,2]
[351124909,1738344658428,-1525.92,0.00017123,2]
[351124910,1738344658438,-500.0,0.00017123,2]
[351124911,1738344658447,-586.96,0.00017123,2]
[351124912,1738344658458,-151.0,0.00017123,2]
[351124913,1738344658469,-948.32,0.00017123,2]
[351124914,1738344658479,-500.0,0.00017123,2]
[351124915,1738344658489,-151.0,0.00017123,2]
[351124916,1738344658498,-500.0,0.00017123,2]
[351124917,1738344658508,-745.44,0.00017123,2]
[351124918,1738344658517,-1049.18,0.00017123,2]
[351124919,1738344658526,-500.0,0.00017123,2]
[351124920,1738344658535,-151.0,0.00017123,2]
[351124921,1738344658545,-642.48,0.00017123,2]
[351124922,1738344658554,-500.0,0.00017123,2]
[351124923,1738344658563,-500.0,0.00017123,2]
[351124924,1738344658573,-500.0,0.00017123,2]
[351124925,1738344658583,-261.165799,0.00017123,2]
[351124926,1738344658593,-595.69,0.00017123,2]
[351124927,1738344658602,-1207.42,0.00017123,2]
[351124928,1738344658612,-500.0,0.00017123,2]
[351124929,1738344658622,-500.0,0.00017123,2]
[351124930,1738344658631,-641.29,0.00017123,2]
[351124931,1738344658641,-151.0,0.00017123,2]
[351124932,1738344658650,-1597.46,0.00017123,2]
[351124933,1738344658660,-758.6,0.00017123,2]
[351124934,1738344658669,-732.3,0.00017123,2]
[351124935,1738344658679,-288.34706,0.00017123,2]
[351124936,1738344658688,-500.0,0.00017123,2]
[351124937,1738344658697,-517.85,0.00017123,2]
[351124938,1738344658706,-711.74,0.00017123,2]
[351124939,1738344658716,-756.07,0.00017123,2]
[351124940,1738344658725,-823.02,0.00017123,2]
[351124941,1738344658735,-4438.02,0.00017123,2]
[351124942,1738344658744,-500.0,0.00017123,2]
[351124943,1738344658754,-500.0,0.00017123,2]
[351124944,1738344658763,-500.0,0.00017123,2]
[351124945,1738344658772,-1280.17,0.00017123,2]
[351124946,1738344658782,-1098.35,0.00017123,2]
[351124947,1738344658791,-2455.28,0.00017123,2]
[351124948,1738344658801,-836.72,0.00017123,2]
[351124949,1738344658810,-1516.94,0.00017123,2]
[351124950,1738344658820,-921.49,0.00017123,2]
[351124951,1738344658829,-4271.91,0.00017123,2]
[351124952,1738344658838,-749.22,0.00017123,2]
[351124953,1738344658847,-566.7,0.00017123,2]
[351124954,1738344658856,-281.748955,0.00017123,2]
[351124955,1738344658866,-2243.02,0.00017123,2]
[351124956,1738344658875,-293.25542711,0.00017123,2]
[351124957,1738344658885,-570.71,0.00017123,2]
[351124958,1738344658895,-3229.19,0.00017123,2]
[351124959,1738344658903,-281.748955,0.00017123,2]
[351124960,1738344658913,-1866.82,0.00017123,2]
[351124961,1738344658922,-553.28,0.00017123,2]
[351124962,1738344658931,-563.64,0.00017123,2]
[351124963,1738344658941,-151.0,0.00017123,2]
[351124964,1738344658950,-583.26,0.00017123,2]
[351124965,1738344658961,-151.0,0.00017123,2]
[351124966,1738344658973,-507.54,0.00017123,2]
[351124967,1738344658984,-500.0,0.00017123,2]
[351124968,1738344658993,-1521.39,0.00017123,2]
[351124969,1738344659003,-2938.57,0.00017123,2]
[351124970,1738344659013,-1369.87,0.00017123,2]
[351124971,1738344659022,-500.0,0.00017123,2]
[351124972,1738344659033,-2767.32,0.00017123,2]
[351124973,1738344659042,-1021.53,0.00017123,2]
[351124974,1738344659051,-1833.31,0.00017123,2]
[351124975,1738344659061,-1461.69,0.00017123,2]
[351124976,1738344659071,-707.32,0.00017123,2]
[351124977,1738344659081,-597.11,0.00017123,2]
[351124978,1738344659092,-540.07,0.00017123,2]
[351124979,1738344659102,-500.0,0.00017123,2]
[351124980,1738344659111,-956.57,0.00017123,2]
[351124981,1738344659122,-500.0,0.00017123,2]
[351124982,1738344659131,-1579.63,0.00017123,2]
[351124983,1738344659140,-849.37,0.00017123,2]
[351124984,1738344659149,-500.0,0.00017123,2]
[351124985,1738344659159,-880.54,0.00017123,2]
[351124986,1738344659168,-1768.83,0.00017123,2]
[351124987,1738344659177,-2273.66,0.00017123,2]
[351124988,1738344659186,-500.0,0.00017123,2]
[351124989,1738344659196,-1090.86,0.00017123,2]
[351124990,1738344659206,-500.0,0.00017123,2]
[351124991,1738344659215,-647.85,0.00017123,2]
[351124992,1738344659224,-481.4016333,0.00017142,2]
[351124993,1738344659234,-1038.0,0.00017147,2]
[351124994,1738344659244,-164.76181997,0.0001716,2]
[351124995,1738344659253,-58286.0388,0.0001716,2]
[351124996,1738344659263,-746.0,0.000172,2]
[351124997,1738344659272,-231.0,0.000172,2]
[351124998,1738344659281,-940.0,0.000172,2]
[351124999,1738344659293,-500.0,0.00017259,2]
[351125000,1738344659302,-500.0,0.00017259,2]
[351125001,1738344659312,-500.0,0.00017259,2]
[351125002,1738344659321,-500.0,0.00017259,2]
[351125003,1738344659331,-500.0,0.00017259,2]
[351125004,1738344659340,-526.63,0.00017259,2]
[351125005,1738344659350,-500.0,0.00017259,2]
[351125006,1738344659360,-500.0,0.00017259,2]
[351125007,1738344659371,-500.0,0.00017259,2]
[351125008,1738344659380,-500.0,0.00017259,2]
[351125009,1738344659389,-511.57,0.00017259,2]
[351125010,1738344659399,-500.0,0.00017259,2]
[351125011,1738344659408,-500.0,0.00017259,2]
[351125012,1738344659417,-500.0,0.00017259,2]
[351125013,1738344659427,-500.0,0.00017259,2]
[351125014,1738344659436,-528.43,0.00017259,2]
[351125015,1738344659445,-500.0,0.00017259,2]
[351125016,1738344659455,-4213.21,0.00017259,2]
[351125017,1738344659464,-500.0,0.00017259,2]
[351125018,1738344659474,-500.0,0.00017259,2]
[351125019,1738344659485,-500.0,0.00017259,2]
[351125020,1738344659494,-500.0,0.00017259,2]
[351125021,1738344659503,-500.0,0.00017259,2]
[351125022,1738344659512,-500.0,0.00017259,2]
[351125023,1738344659521,-500.0,0.00017259,2]
[351125024,1738344659530,-500.0,0.00017259,2]
[351125025,1738344659540,-500.0,0.00017259,2]
[351125026,1738344659549,-500.0,0.00017259,2]
[351125027,1738344659558,-500.0,0.00017259,2]
[351125028,1738344659567,-500.0,0.00017259,2]
[351125029,1738344659576,-500.0,0.00017259,2]
[351125030,1738344659585,-500.0,0.00017259,2]
[351125031,1738344659594,-500.0,0.00017259,2]
[351125032,1738344659604,-500.0,0.00017259,2]
[351125033,1738344659616,-500.0,0.00017259,2]
[351125034,1738344659626,-500.0,0.00017259,2]
[351125035,1738344659635,-500.0,0.00017259,2]
[351125036,1738344659644,-500.0,0.00017259,2]
[351125037,1738344659654,-500.0,0.00017259,2]
[351125038,1738344659664,-500.0,0.00017259,2]
[351125039,1738344659674,-500.0,0.00017259,2]
[351125040,1738344659684,-500.0,0.00017259,2]
[351125041,1738344659694,-500.0,0.00017259,2]
[351125042,1738344659703,-500.0,0.00017259,2]
[351125043,1738344659713,-500.0,0.00017259,2]
[351125044,1738344659722,-500.0,0.00017259,2]
[351125045,1738344659731,-500.0,0.00017259,2]
[351125046,1738344659741,-500.0,0.00017259,2]
[351125047,1738344659750,-500.0,0.00017259,2]
[351125048,1738344659759,-500.0,0.00017259,2]
[351125049,1738344659769,-500.0,0.00017259,2]
[351125050,1738344659778,-500.0,0.00017259,2]
[351125051,1738344659789,-500.0,0.00017259,2]
[351125052,1738344659798,-500.0,0.00017259,2]
[351125053,1738344659808,-500.0,0.00017259,2]
[351125054,1738344659817,-500.0,0.00017259,2]
[351125055,1738344659827,-500.0,0.00017259,2]
[351125056,1738344659836,-500.0,0.00017259,2]
[351125057,1738344659846,-500.0,0.00017259,2]
[351125058,1738344659856,-862.74,0.00017259,2]
[351125059,1738344659866,-747.64,0.00017259,2]
[351125060,1738344659877,-1875.79,0.00017259,2]
[351125061,1738344659887,-500.0,0.00017259,2]
[351125062,1738344659896,-1479.98,0.00017259,2]
[351125063,1738344659906,-642.99,0.00017259,2]
[351125064,1738344659915,-1677.12,0.00017259,2]
[351125065,1738344659925,-1155.48,0.00017259,2]
[351125066,1738344659935,-776.85,0.00017259,2]
[351125067,1738344659944,-500.0,0.00017259,2]
[351125068,1738344659953,-500.0,0.00017259,2]
[351125069,1738344659962,-500.0,0.00017259,2]
[351125070,1738344659971,-500.0,0.00017259,2]
[351125071,1738344659981,-712.01,0.00017259,2]
[351125072,1738344659991,-1188.75,0.00017259,2]
[351125073,1738344660001,-633.32,0.00017259,2]
[351125074,1738344660011,-1253.31,0.00017259,2]
[351125075,1738344660020,-500.0,0.00017259,2]
[351125076,1738344660029,-500.0,0.00017259,2]
[351125077,1738344660038,-500.0,0.00017259,2]
[351125078,1738344660048,-500.0,0.00017259,2]
[351125079,1738344660057,-500.0,0.00017259,2]
[351125080,1738344660068,-500.0,0.00017259,2]
[351125081,1738344660078,-500.0,0.00017259,2]
[351125082,1738344660088,-500.0,0.00017259,2]
[351125083,1738344660098,-500.0,0.00017259,2]
[351125084,1738344660108,-500.0,0.00017259,2]
[351125085,1738344660118,-500.0,0.00017259,2]
[351125086,1738344660128,-500.0,0.00017259,2]
[351125087,1738344660138,-500.0,0.00017259,2]
[351125088,1738344660147,-500.0,0.00017259,2]
[351125089,1738344660157,-500.0,0.00017259,2]
[351125090,1738344660167,-500.0,0.00017259,2]
[351125091,1738344660177,-500.0,0.00017259,2]
[351125092,1738344660187,-500.0,0.00017259,2]
[351125093,1738344660197,-1002.18,0.00017259,2]
[351125094,1738344660208,-500.0,0.00017259,2]
[351125095,1738344660217,-500.0,0.00017259,2]
[351125096,1738344660227,-500.0,0.00017259,2]
[351125097,1738344660237,-500.0,0.00017259,2]
[351125098,1738344660246,-500.0,0.00017259,2]
[351125099,1738344660257,-500.0,0.00017259,2]
[351125100,1738344660267,-500.0,0.00017259,2]
[351125101,1738344660277,-500.0,0.00017259,2]
[351125102,1738344660287,-500.0,0.00017259,2]
[351125103,1738344660302,-500.0,0.00017259,2]
[351125104,1738344660312,-500.0,0.00017259,2]
[351125105,1738344660321,-500.0,0.00017259,2]
[351125106,1738344660333,-500.0,0.00017259,2]
[351125107,1738344660342,-500.0,0.00017259,2]
[351125108,1738344660353,-500.0,0.00017259,2]
[351125109,1738344660363,-500.0,0.00017259,2]
[351125110,1738344660372,-500.0,0.00017259,2]
[351125111,1738344660381,-500.0,0.00017259,2]
[351125112,1738344660391,-500.0,0.00017259,2]
[351125113,1738344660399,-500.0,0.00017259,2]
[351125114,1738344660409,-500.0,0.00017259,2]
[351125115,1738344660420,-500.0,0.00017259,2]
[351125116,1738344660430,-500.0,0.00017259,2]
[351125117,1738344660442,-500.0,0.00017259,2]
[351125118,1738344660452,-668.0,0.00017259,2]
[351125119,1738344660462,-1000.0,0.00017259,2]
[351125120,1738344660472,-500.0,0.00017259,2]
[351125121,1738344660481,-500.0,0.00017259,2]
[351125122,1738344660491,-500.0,0.00017259,2]
[351125123,1738344660500,-500.0,0.00017259,2]
[351125124,1738344660509,-500.0,0.00017259,2]
[351125125,1738344660518,-500.0,0.00017259,2]
[351125126,1738344660527,-500.0,0.00017259,2]
[351125127,1738344660536,-500.0,0.00017259,2]
[351125128,1738344660544,-500.0,0.00017259,2]
[351125129,1738344660553,-500.0,0.00017259,2]
[351125130,1738344660562,-1764.48,0.00017259,2]
[351125131,1738344660571,-500.0,0.00017259,2]
[351125132,1738344660580,-504.39,0.00017259,2]
[351125133,1738344660589,-500.0,0.00017259,2]
[351125134,1738344660598,-500.0,0.00017259,2]
[351125135,1738344660607,-500.0,0.00017259,2]
[351125136,1738344660616,-500.0,0.00017259,2]
[351125137,1738344660625,-500.0,0.00017259,2]
[351125138,1738344660635,-500.0,0.00017259,2]
[351125139,1738344660644,-500.0,0.00017259,2]
[351125140,1738344660654,-500.0,0.00017259,2]
[351125141,1738344660664,-500.0,0.00017259,2]
[351125142,1738344660674,-500.0,0.00017259,2]
[351125143,1738344660683,-500.0,0.00017259,2]
[351125144,1738344660741,-500.0,0.00017259,2]
[351125145,1738344660750,-500.0,0.00017259,2]
[351125146,1738344660759,-500.0,0.00017259,2]
[351125147,1738344660769,-500.0,0.00017259,2]
[351125148,1738344660778,-500.0,0.00017259,2]
[351125149,1738344660787,-500.0,0.00017259,2]
[351125150,1738344660796,-834.71,0.00017259,2]
[351125151,1738344660806,-500.0,0.00017259,2]
[351125152,1738344660817,-500.0,0.00017259,2]
[351125153,1738344660827,-3585.95,0.00017259,2]
[351125154,1738344660836,-589.33,0.00017259,2]
[351125155,1738344660845,-500.0,0.00017259,2]
[351125156,1738344660854,-500.0,0.00017259,2]
[351125157,1738344660863,-1580.09,0.00017259,2]
[351125158,1738344660872,-727.91,0.00017259,2]
[351125159,1738344660882,-926.97,0.00017259,2]
[351125160,1738344660891,-878.18,0.00017259,2]
[351125161,1738344660901,-500.0,0.00017259,2]
[351125162,1738344660911,-2314.55,0.00017259,2]
[351125163,1738344660921,-5608.84,0.00017259,2]
[351125164,1738344660930,-500.0,0.0001726,2]
[351125165,1738344660939,-500.0,0.0001726,2]
[351125166,1738344660948,-500.0,0.0001726,2]
[351125167,1738344660958,-500.0,0.0001726,2]
[351125168,1738344660967,-500.0,0.0001726,2]
[351125169,1738344660976,-500.0,0.0001726,2]
[351125170,1738344660988,-500.0,0.0001726,2]
[351125171,1738344660999,-500.0,0.0001726,2]
[351125172,1738344661008,-500.0,0.0001726,2]
[351125173,1738344661017,-500.0,0.0001726,2]
[351125174,1738344661027,-500.0,0.0001726,2]
[351125175,1738344661036,-500.0,0.0001726,2]
[351125176,1738344661046,-500.0,0.0001726,2]
[351125177,1738344661055,-668.0,0.0001726,2]
[351125178,1738344661064,-500.0,0.0001726,2]
[351125179,1738344661074,-500.0,0.0001726,2]
[351125180,1738344661083,-500.0,0.0001726,2]
[351125181,1738344661092,-500.0,0.0001726,2]
[351125182,1738344661101,-500.0,0.0001726,2]
[351125183,1738344661110,-500.0,0.0001726,2]
[351125184,1738344661119,-500.0,0.0001726,2]
[351125185,1738344661128,-500.0,0.0001726,2]
[351125186,1738344661138,-500.0,0.0001726,2]
[351125187,1738344661147,-500.0,0.0001726,2]
[351125188,1738344661156,-500.0,0.0001726,2]
[351125189,1738344661165,-500.0,0.0001726,2]
[351125190,1738344661174,-500.0,0.0001726,2]
[351125191,1738344661183,-500.0,0.0001726,2]
[351125192,1738344661192,-500.0,0.0001726,2]
[351125193,1738344661201,-500.0,0.0001726,2]
[351125194,1738344661210,-500.0,0.0001726,2]
[351125195,1738344661219,-500.0,0.0001726,2]
[351125196,1738344661228,-500.0,0.0001726,2]
[351125197,1738344661239,-500.0,0.0001726,2]
[351125198,1738344661248,-500.0,0.0001726,2]
[351125199,1738344661257,-500.0,0.0001726,2]
[351125200,1738344661266,-500.0,0.0001726,2]
[351125201,1738344661275,-500.0,0.0001726,2]
[351125202,1738344661284,-500.0,0.0001726,2]
[351125203,1738344661296,-197.91273313,0.0001726,2]
[351125204,1738344661305,-410.77386668,0.0001726,2]
[351125205,1738344661315,-786.32,0.0001726,2]
[351125206,1738344661324,-500.0,0.0001726,2]
[351125207,1738344661334,-715.01,0.0001726,2]
[351125208,1738344661344,-1044.66,0.0001726,2]
[351125209,1738344661353,-535.84,0.0001726,2]
[351125210,1738344661362,-500.0,0.0001726,2]
[351125211,1738344661371,-500.0,0.0001726,2]
[351125212,1738344661382,-500.0,0.0001726,2]
[351125213,1738344661391,-500.0,0.0001726,2]
[351125214,1738344661401,-500.0,0.0001726,2]
[351125215,1738344661411,-784.94,0.0001726,2]
[351125216,1738344661420,-500.0,0.0001726,2]
[351125217,1738344661429,-500.0,0.0001726,2]
[351125218,1738344661439,-564.28,0.0001726,2]
[351125219,1738344661451,-500.0,0.0001726,2]
[351125220,1738344661460,-860.3,0.0001726,2]
[351125221,1738344661470,-500.0,0.0001726,2]
[351125222,1738344661480,-500.0,0.0001726,2]
[351125223,1738344661489,-500.0,0.0001726,2]
[351125224,1738344661498,-500.0,0.0001726,2]
[351125225,1738344661507,-500.0,0.0001726,2]
[351125226,1738344661517,-500.0,0.0001726,2]
[351125227,1738344661526,-500.0,0.0001726,2]
[351125228,1738344661535,-500.0,0.0001726,2]
[351125229,1738344661546,-505.56,0.0001726,2]
[351125230,1738344661555,-500.0,0.0001726,2]
[351125231,1738344661565,-500.0,0.0001726,2]
[351125232,1738344661573,-500.0,0.0001726,2]
[351125233,1738344661582,-500.0,0.0001726,2]
[351125234,1738344661591,-500.0,0.0001726,2]
[351125235,1738344661601,-500.0,0.0001726,2]
[351125236,1738344661610,-500.0,0.0001726,2]
[351125237,1738344661619,-500.0,0.0001726,2]
[351125238,1738344661627,-500.0,0.0001726,2]
[351125239,1738344661636,-697.26,0.0001726,2]
[351125240,1738344661645,-693.81,0.0001726,2]
[351125241,1738344661654,-500.0,0.0001726,2]
[351125242,1738344661674,-500.0,0.0001726,2]
[351125243,1738344661684,-500.0,0.0001726,2]
[351125244,1738344661694,-500.0,0.0001726,2]
[351125245,1738344661704,-561.04,0.0001726,2]
[351125246,1738344661714,-500.0,0.0001726,2]
[351125247,1738344661723,-500.0,0.0001726,2]
[351125248,1738344661733,-500.0,0.0001726,2]
[351125249,1738344661743,-500.0,0.0001726,2]
[351125250,1738344661753,-500.0,0.0001726,2]
[351125251,1738344661762,-371.982495,0.0001726,2]
[351125252,1738344661772,-500.0,0.0001726,2]
[351125253,1738344661782,-368.47460352,0.0001726,2]
[351125254,1738344661792,-500.0,0.0001726,2]
[351125255,1738344661801,-500.0,0.0001726,2]
[351125256,1738344661811,-500.0,0.0001726,2]
[351125257,1738344661821,-500.0,0.0001726,2]
[351125258,1738344661830,-222.17810643,0.0001726,2]
[351125259,1738344661839,-500.0,0.0001726,2]
[351125260,1738344661849,-500.0,0.0001726,2]
[351125261,1738344661859,-500.0,0.0001726,2]
[351125262,1738344661868,-592.06,0.0001726,2]
[351125263,1738344661878,-332.619358,0.0001726,2]
[351125264,1738344661887,-500.0,0.0001726,2]
[351125265,1738344661897,-500.0,0.0001726,2]
[351125266,1738344661907,-500.0,0.0001726,2]
[351125267,1738344661917,-539.55,0.0001726,2]
[351125268,1738344661928,-500.0,0.0001726,2]
[351125269,1738344661937,-759.94,0.0001726,2]
[351125270,1738344661948,-676.46,0.0001726,2]
[351125271,1738344661957,-500.0,0.0001726,2]
[351125272,1738344661968,-500.0,0.0001726,2]
[351125273,1738344661977,-500.0,0.0001726,2]
[351125274,1738344661990,-500.0,0.0001726,2]
[351125275,1738344662000,-533.58,0.0001726,2]
[351125276,1738344662009,-500.0,0.0001726,2]
[351125277,1738344662019,-500.0,0.0001726,2]
[351125278,1738344662028,-500.0,0.0001726,2]
[351125279,1738344662037,-500.0,0.0001726,2]
[351125280,1738344662047,-655.18,0.0001726,2]
[351125281,1738344662056,-500.0,0.0001726,2]
[351125282,1738344662065,-500.0,0.0001726,2]
[351125283,1738344662075,-500.0,0.0001726,2]
[351125284,1738344662084,-585.36,0.0001726,2]
[351125285,1738344662094,-500.0,0.0001726,2]
[351125286,1738344662103,-500.0,0.0001726,2]
[351125287,1738344662112,-649.13,0.0001726,2]
[351125288,1738344662121,-500.0,0.0001726,2]
[351125289,1738344662130,-500.0,0.0001726,2]
[351125290,1738344662140,-500.0,0.0001726,2]
[351125291,1738344662149,-500.0,0.0001726,2]
[351125292,1738344662158,-696.31,0.0001726,2]
[351125293,1738344662167,-500.0,0.0001726,2]
[351125294,1738344662177,-500.0,0.0001726,2]